Workbook

Sheet 目录
A1: 目录
A2: 附表3-1 | B2: 部门预算收支总表
A3: 附表3-2 | B3: 部门预算收入总表
A4: 附表3-3 | B4: 部门预算支出总表
A5: 附表3-4 | B5: 部门预算财政拨款收支总表
A6: 附表3-5 | B6: 部门预算一般公共预算财政拨款支出表
A7: 附表3-6 | B7: 部门预算一般公共预算财政拨款基本支出表
A8: 附表3-7 | B8: 部门预算政府性基金预算财政拨款支出表
A9: 附表3-8 | B9: 部门预算国有资本经营预算财政拨款支出表
A10: 附表3-9 | B10: 部门预算财政拨款“三公”经费支出表

Sheet 附表3-1
A1: 附表3-1
A2: 部门预算收支总表
D3: 公开01表
D4: 单位：万元
A5: 收入 | C5: 支出
A6: 项 目 | B6: 预算数 | C6: 项 目 | D6: 预算数
A7: 一、财政拨款收入 | B7: =3922.33+3010.21+603.02+1474.38+2256.52+1044.32+77.09 -> 12387.87 | C7: 一、一般公共服务支出 | D7: 278.40
A8: 二、上级补助收入 | C8: 二、外交支出 | D8: 0.00
A9: 三、事业收入 | C9: 三、国防支出 | D9: 0.00
A10: 四、经营收入 | C10: 四、公共安全支出 | D10: 0.00
A11: 五、附属单位上缴收入 | C11: 五、教育支出 | D11: =677.5+2491.54+498.22+1209.38+1863.44+851.02 -> 7591.10
A12: 六、其他收入 | C12: 六、科学技术支出 | D12: 0.00
C13: 七、文化体育与传媒支出 | D13: 62.66
C14: 八、社会保障和就业支出 | D14: =1469.73+64.49+14.2+23.9+58.03+22.48+16.5 -> 1669.33
C15: 九、医疗卫生与计划生育支出 | D15: =1378.54+295.9+55.9+149.4+216.16+109.8+58.09 -> 2263.79
C16: 十、节能环保支出 | D16: 0.00
C17: 十一、城乡社区支出 | D17: 0.00
C18: 十二、农林水支出 | D18: 0.00
C19: 十三、交通运输支出 | D19: 0.00
C20: 十四、资源勘探信息等支出 | D20: 0.00
C21: 十五、商业服务业等支出 | D21: 0.00
C22: 十六、金融支出 | D22: 0.00
C23: 十七、援助其他地区支出 | D23: 0.00
C24: 十八、国土海洋气象等支出 | D24: 0.00
C25: 十九、住房保障支出 | D25: =21.5+158.28+34.7+91.7+118.89+61.02+2.5 -> 488.59
C26: 二十、粮油物资储备支出 | D26: 0.00
C27: 二十一、国债还本付息支出 | D27: 0.00
C28: 二十二、其他支出 | D28: 34.00
A29: 本年收入合计 | B29: =B7 -> 12387.87 | C29: 本年支出合计 | D29: =SUM(D7:D28) -> 12387.87
A30: 用事业基金弥补收支差额 | C30: 结余分配
A31: 年初结转和结余 | C31: 年末结转和结余
A32: 合计 | B32: =B29 -> 12387.87 | C32: 合计 | D32: =D29 -> 12387.87

Sheet 附表3-2
A1: 附表3-2
A2: 部门预算收入总表
J3: 公开02表
J4: 单位：万元
A5: 科目 | D5: 本年收入合计 | E5: 财政拨款收入 | F5: 上级补助收入 | G5: 事业收入 | H5: 经营收入 | I5: 附属单位上缴收入 | J5: 其他收入
A6: 功能分类科目编码 | C6: 科目名称
A8: 合计 | D8: =SUM(E8:J8) -> 12387.87 | E8: =SUM(E9:E52) -> 12387.87
A9: 2010301 | C9: 行政运行 | D9: =SUM(E9:J9) -> 278.00 | E9: 278.00
A10: 2050202 | C10: 小学教育 | D10: 4785.68 | E10: =273+2209.76+485.06+1817.86 -> 4785.68
A11: 2050203 | C11: 初中教育 | D11: =E11 -> 2004.20 | E11: =1178.75+825.45 -> 2004.20
A12: 2050299 | C12: 其他普通教育支出 | D12: 174.50 | E12: 174.50
A13: 2050999 | C13: 其他教育费附加安排的支出 | D13: 626.72 | E13: =230+281.78+13.16+30.63+45.58+25.57 -> 626.72
A14: 2070108 | C14: 文化活动 | D14: 10.50 | E14: 10.50
A15: 2070112 | C15: 文化市场管理 | D15: 2.00 | E15: 2.00
A16: 2070406 | C16: 电影 | D16: 3.66 | E16: 3.66
A17: 2079999 | C17: 其他文化体育与传媒支出 | D17: 46.50 | E17: 46.50
A18: 2080205 | C18: 老龄事务 | D18: 82.00 | E18: 82.00
A19: 2080502 | B19: 2050202 | C19: 事业单位离退休 | D19: 199.60 | E19: =64.49+14.2+23.9+58.03+22.48+16.5 -> 199.60
A20: 2080801 | C20: 死亡抚恤 | D20: 8.00 | E20: 8.00
A21: 2080802 | C21: 伤残抚恤 | D21: 45.00 | E21: 45.00
A22: 2080803 | C22: 在乡复员、退伍军人生活补助 | D22: 83.00 | E22: 83.00
A23: 2080805 | C23: 义务兵优待 | D23: 99.00 | E23: 99.00
A24: 2080899 | C24: 其他优抚支出 | D24: 203.00 | E24: 203.00
A25: 2080901 | C25: 退役士兵安置 | D25: 332.00 | E25: 332.00
A26: 2080902 | C26: 军队移交政府离退休人员安置 | D26: 2.00 | E26: 2.00
A27: 2080903 | C27: 军队移交政府离退休干部管理机构 | D27: 3.00 | E27: 3.00
A28: 2081001 | C28: 儿童福利 | D28: 7.00 | E28: 7.00
A29: 2081002 | C29: 老年福利 | D29: 10.00 | E29: 10.00
A30: 2081104 | C30: 殡葬 | D30: 0.95 | E30: 0.95
A31: 2081105 | C31: 社会福利事业单位 | D31: 1.58 | E31: 1.58
A32: 2081199 | C32: 其他残疾人事业支出 | D32: 94.20 | E32: 94.20
A33: 2081901 | C33: 城市最低生活保障金支出 | D33: 56.00 | E33: 56.00
A34: 2081902 | C34: 农村最低生活保障金支出 | D34: 144.00 | E34: 144.00
A35: 2082001 | C35: 临时救助支出 | D35: 18.00 | E35: 18.00
A36: 2082102 | C36: 流浪乞讨人员救助支出 | D36: 6.00 | E36: 6.00
A37: 2089901 | C37: 其他社会保障和就业支出 | D37: 275.00 | E37: 275.00
A38: 2100302 | C38: 乡镇卫生院 | D38: 54.89 | E38: 54.89
A39: 2100399 | C39: 其他基层医疗卫生机构支出 | D39: 183.40 | E39: 183.40
A40: 2100401 | C40: 疾病预防控制机构 | D40: 2.95 | E40: 2.95
A41: 2100408 | C41: 基本公共卫生服务 | D41: 613.43 | E41: 613.43
A42: 2100409 | C42: 重大公共卫生专项 | D42: 40.41 | E42: 40.41
A43: 2100499 | C43: 其他公共卫生支出 | D43: 2.95 | E43: 2.95
A44: 2100717 | C44: 计划生育服务 | D44: 226.00 | E44: 226.00
A45: 2100799 | C45: 其他计划生育事务支出 | D45: 220.00 | E45: 220.00
A46: 2101101 | B46: 2101101 | C46: 行政单位医疗 | D46: 27.80 | E46: 27.80
A47: 2101102 | B47: 2050202 | C47: 事业单位医疗 | D47: 830.36 | E47: =295.9+55.9+149.4+216.16+109.8+3.2 -> 830.36
A48: 2101301 | C48: 城乡医疗救助 | D48: 31.00 | E48: 31.00
A49: 2101401 | C49: 优抚对象医疗补助 | D49: 8.00 | E49: 8.00
A50: 2109901 | C50: 其他医疗卫生与计划生育支出 | D50: 23.00 | E50: 23.00
A51: 2210201 | B51: 2210201 | C51: 住房公积金 | D51: 488.59 | E51: =21.5+158.28+34.7+91.7+118.89+61.02+2.5 -> 488.59
A52: 2296002 | C52: 用于社会福利的彩票公益基金支出 | D52: 34.00 | E52: 34.00

Sheet 附表3-3
A1: 附表3-3
A2: 部门预算支出总表
I3: 公开03表
I4: 单位：万元
A5: 科目 | D5: 本年支出合计 | E5: 基本支出 | F5: 项目支出 | G5: 上缴上级支出 | H5: 经营支出 | I5: 对附属单位补助支出
A6: 功能分类科目编码 | C6: 科目名称
C7: 合计 | D7: =SUM(D8:D51) -> 12,387.87 | E7: =SUM(E8:E51) -> 8,628.14 | F7: =SUM(F8:F51) -> 3,759.73
A8: 2010301 | C8: 行政运行 | D8: =SUM(E8:F8) -> 278.00 | E8: 278.00
A9: 2050202 | C9: 小学教育 | D9: =SUM(E9:F9) -> 4,785.68 | E9: =2209.76+485.06+1817.86 -> 4,512.68 | F9: 273.00
A10: 2050203 | C10: 初中教育 | D10: =E10 -> 2,004.20 | E10: =1178.75+825.45 -> 2,004.20
A11: 2050999 | C11: 其他教育费附加安排的支出 | D11: =SUM(E11:F11) -> 626.72 | E11: =126.08+13.16+30.63+45.58+25.57 -> 241.02 | F11: =230+155.7 -> 385.70
A12: 2080502 | B12: 2050202 | C12: 事业单位离退休 | D12: =SUM(E12:H12) -> 199.60 | E12: =64.49+14.2+23.9+58.03+22.48+16.5 -> 199.60
A13: 2100302 | C13: 乡镇卫生院 | D13: 54.89 | E13: 45.89 | F13: 9.00
A14: 2101101 | B14: 2101101 | C14: 行政单位医疗 | D14: =SUM(E14:F14) -> 27.80 | E14: 27.80
A15: 2101102 | B15: 2050202 | C15: 事业单位医疗 | D15: =SUM(E15:H15) -> 830.36 | E15: =295.9+55.9+149.4+216.16+109.8+3.2 -> 830.36
A16: 2210201 | B16: 2210201 | C16: 住房公积金 | D16: =SUM(E16:F16) -> 488.59 | E16: =21.5+158.28+34.7+91.7+118.89+61.02+2.5 -> 488.59
A17: 2050299 | C17: 其他普通教育支出 | D17: 174.50 | F17: 174.50
A18: 2070108 | C18: 文化活动 | D18: 10.50 | F18: 10.50
A19: 2070112 | C19: 文化市场管理 | D19: 2.00 | F19: 2.00
A20: 2070406 | C20: 电影 | D20: 3.66 | F20: 3.66
A21: 2079999 | C21: 其他文化体育与传媒支出 | D21: 46.50 | F21: 46.50
A22: 2080205 | C22: 老龄事务 | D22: 82.00 | F22: 82.00
A23: 2080801 | C23: 死亡抚恤 | D23: 8.00 | F23: 8.00
A24: 2080802 | C24: 伤残抚恤 | D24: 45.00 | F24: 45.00
A25: 2080803 | C25: 在乡复员、退伍军人生活补助 | D25: 83.00 | F25: 83.00
A26: 2080805 | C26: 义务兵优待 | D26: 99.00 | F26: 99.00
A27: 2080899 | C27: 其他优抚支出 | D27: 203.00 | F27: 203.00
A28: 2080901 | C28: 退役士兵安置 | D28: 332.00 | F28: 332.00
A29: 2080902 | C29: 军队移交政府离退休人员安置 | D29: 2.00 | F29: 2.00
A30: 2080903 | C30: 军队移交政府离退休干部管理机构 | D30: 3.00 | F30: 3.00
A31: 2081001 | C31: 儿童福利 | D31: 7.00 | F31: 7.00
A32: 2081002 | C32: 老年福利 | D32: 10.00 | F32: 10.00
A33: 2081104 | C33: 殡葬 | D33: 0.95 | F33: 0.95
A34: 2081105 | C34: 社会福利事业单位 | D34: 1.58 | F34: 1.58
A35: 2081199 | C35: 其他残疾人事业支出 | D35: 94.20 | F35: 94.20
A36: 2081901 | C36: 城市最低生活保障金支出 | D36: 56.00 | F36: 56.00
A37: 2081902 | C37: 农村最低生活保障金支出 | D37: 144.00 | F37: 144.00
A38: 2082001 | C38: 临时救助支出 | D38: 18.00 | F38: 18.00
A39: 2082102 | C39: 流浪乞讨人员救助支出 | D39: 6.00 | F39: 6.00
A40: 2089901 | C40: 其他社会保障和就业支出 | D40: 275.00 | F40: 275.00
A41: 2100399 | C41: 其他基层医疗卫生机构支出 | D41: 183.40 | F41: 183.40
A42: 2100401 | C42: 疾病预防控制机构 | D42: 2.95 | F42: 2.95
A43: 2100408 | C43: 基本公共卫生服务 | D43: 613.43 | F43: 613.43
A44: 2100409 | C44: 重大公共卫生专项 | D44: 40.41 | F44: 40.41
A45: 2100499 | C45: 其他公共卫生支出 | D45: 2.95 | F45: 2.95
A46: 2100717 | C46: 计划生育服务 | D46: 226.00 | F46: 226.00
A47: 2100799 | C47: 其他计划生育事务支出 | D47: 220.00 | F47: 220.00
A48: 2101301 | C48: 城乡医疗救助 | D48: 31.00 | F48: 31.00
A49: 2101401 | C49: 优抚对象医疗补助 | D49: 8.00 | F49: 8.00
A50: 2109901 | C50: 其他医疗卫生与计划生育支出 | D50: 23.00 | F50: 23.00
A51: 2296002 | C51: 用于社会福利的彩票公益基金支出 | D51: 34.00 | F51: 34.00

Sheet 附表3-4
A1: 附表3-4
A2: 部门预算财政拨款收支总表
G3: 公开04表
G4: 单位：万元
A5: 收入 | C5: 支出
A6: 项 目 | B6: 金额 | C6: 项 目 | D6: 合计 | E6: 一般公共预算财政拨款 | F6: 政府性基金预算财政拨款 | G6: 国有资本经营预算财政拨款
A7: 一、一般公共预算财政拨款 | B7: =3888.33+3010.21+603.02+1474.38+2256.52+1044.32+77.09 -> 12,353.87 | C7: 一、一般公共服务支出 | D7: =SUM(E7:G7) -> 278.40 | E7: 278.40
A8: 二、政府性基金预算财政拨款 | B8: 34.00 | C8: 二、外交支出 | D8: =SUM(E8:G8) -> 0.00
A9: 三、国有资本经营预算财政拨款 | C9: 三、国防支出 | D9: 0.00
C10: 四、公共安全支出 | D10: 0.00
C11: 五、教育支出 | D11: 7,591.10 | E11: =677.5+2491.54+498.22+1209.38+1863.44+851.02 -> 7,591.10
C12: 六、科学技术支出 | D12: 0.00
C13: 七、文化体育与传媒支出 | D13: 62.66 | E13: 62.66
C14: 八、社会保障和就业支出 | D14: 1,669.33 | E14: =1469.73+64.49+14.2+23.9+58.03+22.48+16.5 -> 1,669.33
C15: 九、医疗卫生与计划生育支出 | D15: 2,263.79 | E15: =1378.54+295.9+55.9+149.4+216.16+109.8+58.09 -> 2,263.79
C16: 十、节能环保支出 | D16: 0.00
C17: 十一、城乡社区支出 | D17: 0.00
C18: 十二、农林水支出 | D18: 0.00
C19: 十三、交通运输支出 | D19: 0.00
C20: 十四、资源勘探信息等支出 | D20: 0.00
C21: 十五、商业服务业等支出 | D21: 0.00
C22: 十六、金融支出 | D22: 0.00
C23: 十七、援助其他地区支出 | D23: 0.00
C24: 十八、国土海洋气象等支出 | D24: 0.00
C25: 十九、住房保障支出 | D25: 488.59 | E25: =21.5+158.28+34.7+91.7+118.89+61.02+2.5 -> 488.59
C26: 二十、粮油物资储备支出 | D26: 0.00
C27: 二十一、国债还本付息支出 | D27: 0.00
C28: 二十二、其他支出 | D28: 34.00 | F28: 34.00
A29: 本年收入合计 | B29: =SUM(B7:B9) -> 12,387.87 | C29: 本年支出合计 | D29: =SUM(E29:G29) -> 12,387.87 | E29: =SUM(E7:E28) -> 12,353.87 | F29: =SUM(F7:F28) -> 34.00
A30: 年初财政拨款结转和结余 | C30: 年末结转和结余
A31: 合计 | B31: =SUM(B29:B30) -> 12,387.87 | C31: 合计 | D31: =SUM(D29:D30) -> 12,387.87 | E31: =SUM(E29:E30) -> 12,353.87 | F31: =SUM(F29:F30) -> 34.00 | G31: =SUM(G29:G30) -> 0.00

Sheet 附表3-5
A1: 附表3-5
A2: 部门预算一般公共预算财政拨款支出表
F3: 公开05表
F4: 单位：万元
A5: 科目 | D5: 合计 | E5: 基本支出 | F5: 项目支出
A6: 功能分类科目编码 | C6: 科目名称
C9: 合计 | D9: =E9+F9 -> 12,353.87 | E9: =SUM(E10:E18) -> 8,628.14 | F9: =SUM(F10:F52) -> 3,725.73
A10: 2010301 | C10: 行政运行 | D10: =E10+F10 -> 278.00 | E10: 278.00
A11: 2050202 | C11: 小学教育 | D11: =E11+F11 -> 4,785.68 | E11: =2209.76+485.06+1817.86 -> 4,512.68 | F11: 273.00
A12: 2050203 | C12: 初中教育 | D12: =E12 -> 2,004.20 | E12: =1178.75+825.45 -> 2,004.20
A13: 2050999 | C13: 其他教育费附加安排的支出 | D13: 626.72 | E13: =126.08+13.16+30.63+45.58+25.57 -> 241.02 | F13: =230+155.7 -> 385.70
A14: 2080502 | B14: 2050202 | C14: 事业单位离退休 | D14: 199.60 | E14: =64.49+14.2+23.9+58.03+22.48+16.5 -> 199.60
A15: 2100302 | C15: 乡镇卫生院 | D15: 54.89 | E15: 45.89 | F15: 9.00
A16: 2101101 | B16: 2101101 | C16: 行政单位医疗 | D16: 27.80 | E16: 27.80
A17: 2101102 | B17: 2050202 | C17: 事业单位医疗 | D17: 830.36 | E17: =295.9+55.9+149.4+216.16+109.8+3.2 -> 830.36
A18: 2210201 | B18: 2210201 | C18: 住房公积金 | D18: 488.59 | E18: =21.5+158.28+34.7+91.7+118.89+61.02+2.5 -> 488.59
A19: 2050299 | C19: 其他普通教育支出 | D19: 174.50 | F19: 174.50
A20: 2070108 | C20: 文化活动 | D20: 10.50 | F20: 10.50
A21: 2070112 | C21: 文化市场管理 | D21: 2.00 | F21: 2.00
A22: 2070406 | C22: 电影 | D22: 3.66 | F22: 3.66
A23: 2079999 | C23: 其他文化体育与传媒支出 | D23: 46.50 | F23: 46.50
A24: 2080205 | C24: 老龄事务 | D24: 82.00 | F24: 82.00
A25: 2080801 | C25: 死亡抚恤 | D25: 8.00 | F25: 8.00
A26: 2080802 | C26: 伤残抚恤 | D26: 45.00 | F26: 45.00
A27: 2080803 | C27: 在乡复员、退伍军人生活补助 | D27: 83.00 | F27: 83.00
A28: 2080805 | C28: 义务兵优待 | D28: 99.00 | F28: 99.00
A29: 2080899 | C29: 其他优抚支出 | D29: 203.00 | F29: 203.00
A30: 2080901 | C30: 退役士兵安置 | D30: 332.00 | F30: 332.00
A31: 2080902 | C31: 军队移交政府离退休人员安置 | D31: 2.00 | F31: 2.00
A32: 2080903 | C32: 军队移交政府离退休干部管理机构 | D32: 3.00 | F32: 3.00
A33: 2081001 | C33: 儿童福利 | D33: 7.00 | F33: 7.00
A34: 2081002 | C34: 老年福利 | D34: 10.00 | F34: 10.00
A35: 2081104 | C35: 殡葬 | D35: 0.95 | F35: 0.95
A36: 2081105 | C36: 社会福利事业单位 | D36: 1.58 | F36: 1.58
A37: 2081199 | C37: 其他残疾人事业支出 | D37: 94.20 | F37: 94.20
A38: 2081901 | C38: 城市最低生活保障金支出 | D38: 56.00 | F38: 56.00
A39: 2081902 | C39: 农村最低生活保障金支出 | D39: 144.00 | F39: 144.00
A40: 2082001 | C40: 临时救助支出 | D40: 18.00 | F40: 18.00
A41: 2082102 | C41: 流浪乞讨人员救助支出 | D41: 6.00 | F41: 6.00
A42: 2089901 | C42: 其他社会保障和就业支出 | D42: 275.00 | F42: 275.00
A43: 2100399 | C43: 其他基层医疗卫生机构支出 | D43: 183.40 | F43: 183.40
A44: 2100401 | C44: 疾病预防控制机构 | D44: 2.95 | F44: 2.95
A45: 2100408 | C45: 基本公共卫生服务 | D45: 613.43 | F45: 613.43
A46: 2100409 | C46: 重大公共卫生专项 | D46: 40.41 | F46: 40.41
A47: 2100499 | C47: 其他公共卫生支出 | D47: 2.95 | F47: 2.95
A48: 2100717 | C48: 计划生育服务 | D48: 226.00 | F48: 226.00
A49: 2100799 | C49: 其他计划生育事务支出 | D49: 220.00 | F49: 220.00
A50: 2101301 | C50: 城乡医疗救助 | D50: 31.00 | F50: 31.00
A51: 2101401 | C51: 优抚对象医疗补助 | D51: 8.00 | F51: 8.00
A52: 2109901 | C52: 其他医疗卫生与计划生育支出 | D52: 23.00 | F52: 23.00

Sheet 附表3-6
A1: 附表3-6
A2: 部门预算一般公共预算财政拨款基本支出表
E3: 公开06表
E4: 单位：万元
A5: 科目 | C5: 基本支出
A6: 经济分类科目编码 | B6: 科目名称 | C6: 合计 | D6: 人员经费 | E6: 公用经费
B7: 合计 | C7: =D7+E7 -> 8,628.14 | D7: =SUM(D8:D33) -> 8,367.72 | E7: =SUM(E8:E33) -> 260.42
A8: 30101 | B8: 基本工资 | C8: =D8+E8 -> 2,008.47 | D8: =81.3+646.06+157.85+339.8+483.79+289.86+9.81 -> 2,008.47
A9: 30102 | B9: 津贴补贴 | C9: =D9+E9 -> 1,342.64 | D9: =7.8+454.9+106.51+264.1+442.15+66.94+0.24 -> 1,342.64
A10: 30103 | B10: 年终一次性奖金 | C10: 0.70 | D10: 0.70
A11: 30104 | B11: 其他社会保障缴费 | C11: 1,881.27 | D11: =88.3+602.51+132+348.8+467.94+232.19+9.53 -> 1,881.27
A12: 30107 | B12: 绩效工资 | C12: 1,472.73 | D12: =89.8+481.58+93.6+246.1+326.19+225.16+10.3 -> 1,472.73
A13: 30199 | B13: 其他工资福利支出 | C13: 229.67 | D13: =3.3+63.24+1.9+15.9+127.08+18.25 -> 229.67
A14: 30302 | B14: 退休费 | C14: 199.60 | D14: =64.49+14.2+23.9+58.03+22.48+16.5 -> 199.6
A15: 30305 | B15: 生活补助 | C15: 8.20 | D15: =2.4+2+2+1.8 -> 8.2
A16: 30307 | B16: 医疗费 | C16: 230.05 | D16: =92.46+11.4+31.6+63.16+31.43 -> 230.05
A17: 30309 | B17: 奖励金 | C17: 4.95 | D17: =0.2+0.87+0.2+0.75+0.91+0.41+1.61 -> 4.95
A18: 30311 | B18: 住房公积金 | C18: 488.59 | D18: =21.5+158.28+34.7+91.7+118.89+61.02+2.5 -> 488.59
A19: 30399 | B19: 其他对个人和家庭的补助支山 | C19: 500.85 | D19: =15+161.64+37.5+79.1+120.8+69.21+17.6 -> 500.85
A20: 30201 | B20: 办公费 | C20: 79.50 | E20: =4.8+25.5+6.45+13.95+19.5+9.3 -> 79.50
A21: 30205 | B21: 水费 | C21: 0.00
A22: 30206 | B22: 电费 | C22: 9.00 | E22: =4+5 -> 9.00
A23: 30207 | B23: 邮电费 | C23: 3.50 | E23: =1.5+0.7+0.1+0.1+1+0.1 -> 3.50
A24: 30208 | B24: 办公取暖费 | C24: 65.00 | E24: 65.00
A25: 30211 | B25: 差旅费 | C25: 4.80 | E25: 4.80
A26: 30213 | B26: 维修(护)费 | C26: 6.50 | E26: =0.5+2.1+0.3+0.3+3+0.3 -> 6.50
A27: 30215 | B27: 会议费 | C27: 0.05 | E27: 0.05
A28: 30202 | B28: 印刷费 | C28: 2.00 | E28: =0.7+0.1+0.1+1+0.1 -> 2
A29: 30231 | B29: 公用用车运行维护费 | C29: 3.00 | E29: 3.00
A30: 30299 | B30: 其他 | C30: 5.30 | E30: =0.32+1.7+0.43+0.93+1.3+0.62 -> 5.30
A31: 30216 | B31: 培训费 | C31: 0.05 | E31: 0.05
A32: 30217 | B32: 公务接待费 | C32: 0.82 | E32: 0.82
A33: 30228 | B33: 工会经费 | C33: 80.90 | E33: =3.56+26.38+5.78+15.25+19.78+10.15 -> 80.90

Sheet 附表3-7
A1: 附表3-7
A2: 部门预算政府性基金预算财政拨款支出表
F4: 单位：万元
A5: 科目 | D5: 合计 | E5: 基本支出 | F5: 项目支出
A6: 功能分类科目编码 | C6: 科目名称
A9: 合计 | D9: =SUM(D10:D15) -> 34.00 | E9: =SUM(E10:E15) -> 0.00 | F9: =SUM(F10:F15) -> 34.00
A10: 2296002 | C10: 用于社会福利的彩票公益基金支出 | D10: =SUM(E10:F10) -> 34.00 | F10: 34.00

Sheet 附表3-8
A1: 附表3-8
A2: 部门预算国有资本经营预算财政拨款支出表
F4: 单位：万元
A5: 科目 | D5: 合计 | E5: 基本支出 | F5: 项目支出
A6: 功能分类科目编码 | C6: 科目名称
A9: 合计
A16: 此表无数据

Sheet 附表3-9
A1: 附表3-9
A2: 部门预算财政拨款“三公”经费支出表
E3: 公开07表
E4: 单位：万元
A5: 项目 | B5: 资金来源
B6: 合计 | C6: 一般公共预算财政拨款 | D6: 政府性基金财政拨款 | E6: 国有资本经营预算财政拨款
A7: 合计 | B7: =SUM(C7:E7) -> 3.82 | C7: =SUM(C8:C9,C12) -> 3.82 | D7: =SUM(D8:D9,D12) -> 0 | E7: =SUM(E8:E9,E12) -> 0
A8: 一、因公出国（境）费 | B8: 0
A9: 二、公务用车购置及运行费 | B9: 3 | C9: =SUM(C10:C11) -> 3 | D9: =SUM(D10:D11) -> 0 | E9: =SUM(E10:E11) -> 0
A10: 其中：公务用车购置费 | B10: 0
A11: 公务用车运行费 | B11: 3 | C11: 3
A12: 三、公务接待费 | B12: 0.82 | C12: 0.82
